Cogmind - Beta 17.1 @@@ ROGUE MODE // 2026.09.16 @ 23:44:39 Player: MAXX-P31 Result: Destroyed by G-73 Enforcer with Phase Gun Performance ------------- Evolutions (9) 4500 Regions Visited (23) 4600 Robots Destroyed (454) 2270 Value Destroyed (23737) 23737 Prototype IDs (20) 400 Alien Tech Used (0) 0 Bonus (15336) 15336 TOTAL SCORE: 50843 Bonus ------- Triggered High Security 500 High Alert Combat Kills 5193 Follower Combat Kills 2328 Hunted by Unchained 500 Entered Garrisons 1600 Used RIF Installer 5500 Friendly Fire -285 Cogmind --------- Core Integrity 0/1600 Matter 29/300 Energy 16/100 System Corruption 73% Temperature Cool (11) Movement Flying (40) Location -1/Access Parts ------- > --- POWER (3) -------- (None) > --- PROPULSION (6) --- Field Propulsion Array > --- UTILITY (11) ----- Advanced Sensor Array Advanced Signal Interpreter Advanced Targeting Computer Experimental Target Analyzer Graphene Brace > --- WEAPON (5) ------- Phase Gun > --- INVENTORY (5) ---- Biometal Leg Field Propulsion Array Relay Coupler [NC] (35) Relay Coupler [Sentry] (33) Peak State ------------ > --- POWER ------------ Particle Reactor Light Quantum Reactor Light Quantum Reactor > --- PROPULSION ------- Enhanced Armored Heavy Treads Advanced Heavy Siege Treads Advanced Heavy Siege Treads > --- UTILITY ---------- Advanced Heat Sink Advanced Heat Sink Advanced Coolant Injector Experimental Coolant Injector Huge Storage Unit Experimental Sensor Array Advanced Signal Interpreter Advanced Targeting Computer Core Analyzer Graphene Brace Relay Coupler [C] > --- WEAPON ----------- Phase Gun Quantum Rifle Quantum Rifle Quantum Rifle Enhanced Nova Cannon > --- INVENTORY -------- Particle Reactor Light Quantum Reactor Heavy Siege Treads Biometal Heavy Treads Advanced Heavy Siege Treads Improved Cooling System Energy Well High-capacity Matter Pod Long-range Terrain Scanner Transmission Jammer Advanced Force Field Advanced Force Field Relay Coupler [NC] Relay Coupler [C] Relay Coupler [C] Relay Coupler [Sentry] Compact HERF Cannon Railgun Enhanced Hardcell Cannon Fusion Bomb Launcher Advanced Remote Datajack Power Sword [Rating: 202] Favorites ----------- Power Reinforced Fission Core Engine Heavy Ion Engine Power Core Reinforced Fission Core Reactor Light Quantum Reactor Propulsion Advanced Treads Treads Advanced Treads Leg Myomer Leg Flight Unit Field Propulsion Array Utility Huge Storage Unit Device Advanced Heat Sink Storage Huge Storage Unit Processor Core Analyzer Hackware Relay Coupler [C] Protection Hardened Light Armor Plating Weapon Plasma Cannon Energy Gun Quantum Rifle Energy Cannon Plasma Cannon Ballistic Gun Improved Assault Rifle Ballistic Cannon Enhanced Hardcell Cannon Launcher Fusion Bomb Launcher Special Weapon Improved Remote Datajack Impact Weapon Gravity Flail Slashing Weapon Katana Build | -11 -10 -10 -9 -9 -8 -8 -8 -8 -7 -7 -6 -6 -5 -5 -4 -3 -3 -2 -2 -2 -1 -1 -1 ------- Run | Yrd Mat Min Mat Min Mat Gar Mat Gar Fac Gar Fac Gar Fac Gar Fac Res Gar Res Gar Res Acc Gar Acc Slots Evolved 18 | . . . 2 . 2 . . . 2 . 2 . 2 . 2 2 . 2 . . 2 . . Power 2 | . . . . . 1 . . . . . . . . . . . . 1 . . . . . Propulsion 4 | . . . . . . . . . 1 . 1 . . . 2 . . . . . . . . Utility 9 | . . . 1 . 1 . . . 1 . . . 2 . . 2 . 1 . . 1 . . Weapon 3 | . . . 1 . . . . . . . 1 . . . . . . . . . 1 . . Parts Attached 335 | 7 7 2 25 . 20 19 9 4 3 3 15 10 14 16 11 2 12 2 13 19 1 31 90 Power 47 | 1 2 . 3 . 2 4 2 1 . . 1 1 . 1 1 . . 1 1 4 . 7 15 Engine 15 | 1 1 . 3 . 1 4 2 . . . . 1 . . . . . . . . . . 2 Core 5 | . 1 . . . 1 . . 1 . . . . . 1 . . . 1 . . . . . Reactor 27 | . . . . . . . . . . . 1 . . . 1 . . . 1 4 . 7 13 Propulsion 80 | 2 2 . 7 . 7 3 . 1 2 . 1 3 2 7 3 . 5 . 2 5 . 6 22 Treads 53 | 2 2 . 7 . 7 3 . 1 2 . 1 3 2 7 2 . . . . . . . 14 Leg 24 | . . . . . . . . . . . . . . . 1 . 5 . 2 5 . 6 5 Wheel . | . . . . . . . . . . . . . . . . . . . . . . . . Hover . | . . . . . . . . . . . . . . . . . . . . . . . . Flight 3 | . . . . . . . . . . . . . . . . . . . . . . . 3 Utility 106 | 2 2 2 4 . 5 5 3 . 1 1 4 6 8 6 3 2 7 1 5 5 . 8 26 Device 54 | 1 . 2 1 . 3 2 1 . . 1 2 4 4 4 2 1 3 1 2 3 . 2 15 Storage 8 | 1 2 . 1 . . . 1 . . . . . 1 . . . . . . . . . 2 Processor 13 | . . . . . . 1 . . . . 1 . 1 . 1 1 . . 1 2 . . 5 Hackware 13 | . . . . . . . . . . . . . . 1 . . 4 . 2 . . 4 2 Protection 18 | . . . 2 . 2 2 1 . 1 . 1 2 2 1 . . . . . . . 2 2 Artifact . | . . . . . . . . . . . . . . . . . . . . . . . . Weapon 102 | 2 1 . 11 . 6 7 4 2 . 2 9 . 4 2 4 . . . 5 5 1 10 27 Energy Gun 29 | . . . 4 . 3 1 . . . . 1 . . 1 . . . . 1 4 . 6 8 Energy Cannon 21 | . . . . . 1 2 . . . . 5 . 3 1 3 . . . 1 1 . . 4 Ballistic Gun 31 | 2 . . 6 . 1 2 3 2 . 1 1 . . . . . . . 2 . . 4 7 Ballistic Cannon 10 | . 1 . . . . 2 . . . . . . . . . . . . 1 . 1 . 5 Launcher 6 | . . . 1 . . . 1 . . . 2 . 1 . . . . . . . . . 1 Special Weapon 3 | . . . . . . . . . . 1 . . . . 1 . . . . . . . 1 Impact Weapon 1 | . . . . . . . . . . . . . . . . . . . . . . . 1 Slashing Weapon 1 | . . . . . 1 . . . . . . . . . . . . . . . . . . Piercing Weapon . | . . . . . . . . . . . . . . . . . . . . . . . . Special Melee Weapon . | . . . . . . . . . . . . . . . . . . . . . . . . Unidentified Prototypes 20 | . . 1 3 . . . 3 . . . 1 . . . 1 . . . 3 2 1 . 5 Corrupted Parts 1 | . . . . . . . . . . . . . . . . . . . . . . . 1 System Corruption 5 | . . . . . . . . . . . . . . . . . . . . . . . 5 Parts Lost 117 | . . . 1 . 1 6 2 1 . . . 2 1 1 . . 2 . 3 6 . 20 71 Power 21 | . . . . . . 1 . . . . . . . . . . . . . 1 . 5 14 Propulsion 25 | . . . . . . . . 1 . . . . 1 1 . . 1 . . 1 . 4 16 Utility 34 | . . . . . 1 3 1 . . . . 2 . . . . 1 . 2 2 . 4 18 Weapon 37 | . . . 1 . . 2 1 . . . . . . . . . . . 1 2 . 7 23 Highest Loss Streak 21 | . . . 1 . 1 6 2 1 . . . 1 1 1 . . 1 . 2 5 . 6 21 To Critical Strikes . | . . . . . . . . . . . . . . . . . . . . . . . . Average Backups 20 | 1 9 15 19 19 19 19 19 19 19 19 19 19 23 22 22 22 23 23 23 24 19 20 20 Power . | . . . . 1 . 1 1 2 2 1 1 . . . 1 1 1 . . . . 1 1 Propulsion 3 | . 2 4 4 4 5 5 6 6 5 4 3 2 2 2 1 1 1 2 2 4 2 2 3 Utility 10 | . 3 8 8 10 8 6 5 5 6 7 9 11 15 13 14 13 15 16 16 15 14 14 9 Weapon 4 | . 2 3 4 4 5 5 4 5 5 5 4 4 5 4 5 6 4 4 3 3 2 2 5 Tool/Special . | . . . . . . . . . . . . . . . . . . . . . . . . Unused Backups 54 | . 5 . 6 . 5 5 1 1 1 3 3 2 2 1 . . 4 . . 1 . 1 13 Power 3 | . . . . . 1 . 1 . . 1 . . . . . . . . . . . . . Propulsion 17 | . 1 . 2 . 3 3 . 1 1 . . . . . . . . . . 1 . . 5 Utility 23 | . 2 . 3 . 1 1 . . . 2 1 1 2 . . . 3 . . . . 1 6 Weapon 9 | . 2 . 1 . . . . . . . 2 1 . . . . 1 . . . . . 2 Tool/Special 2 | . . . . . . 1 . . . . . . . 1 . . . . . . . . . Average Slot Usage (%) 93 | . 100 100 99 100 99 99 99 99 99 100 99 99 89 93 94 94 91 90 90 87 99 92 79 Engine 5 | . 9 . 10 11 14 14 18 11 7 7 2 3 5 . . . . . . . . . . Core 3 | . 4 14 . . 3 3 . 6 7 7 6 6 5 10 5 4 4 8 6 3 . . . Reactor 3 | . . . . . . . . . . . 3 2 . . 4 4 4 4 5 8 12 10 9 Treads 16 | . 28 28 22 22 18 17 18 17 23 23 26 25 16 20 22 19 6 . . . . . 10 Leg 3 | . . . . . . . . . . . . . . . 3 4 13 17 17 14 24 20 1 Device 15 | . 14 14 11 11 17 12 11 18 15 15 15 21 18 20 17 19 16 16 13 12 12 9 17 Storage 6 | . 14 14 11 11 9 9 9 9 7 7 6 6 5 5 5 4 4 4 4 4 4 4 4 Processor 6 | . . . . . . 5 6 . . . 2 . 2 5 8 13 14 13 15 17 20 16 11 Hackware 2 | . . . . . . . . . . . . . . . 5 4 6 8 8 8 8 10 4 Protection 4 | . . . 11 11 8 9 9 9 14 15 8 3 8 4 . . . . . . . 2 . Energy Gun 4 | . . . 9 11 16 2 . . . . . . . 2 1 . . . 3 5 8 8 7 Energy Cannon 7 | . . . . . . 7 2 . . . 11 25 22 19 19 19 17 17 5 5 7 1 2 Ballistic Gun 8 | . 19 14 21 22 9 8 21 26 23 15 12 . . . . . . . 6 3 1 2 3 Ballistic Cannon 2 | . 8 14 1 . . 7 2 . . . . . . . . . . . 1 2 1 2 3 Peak Build Rating 202 | 7 11 19 21 20 31 42 43 40 47 53 67 72 90 97 121 130 138 154 164 178 193 193 202 Average Rating 89 | 5 8 11 18 20 28 37 38 38 45 50 61 66 85 90 114 129 134 150 156 165 191 164 171 On Entrance 78 | . 7 11 11 20 20 31 42 37 39 47 53 64 72 87 92 121 130 138 150 164 178 193 179 Avg Prop Armor Cover (%) 3 | . . . . . . . . . . . . . . . 2 2 2 . . . . . 20 Naked Turns . | . . . . . . . . . . . . . . . . . . . . . . . . Heaviest Build 231 | 13 31 31 63 62 75 92 94 83 86 92 107 104 154 168 169 169 164 185 191 169 143 169 231 Greatest Support 240 | 40 40 40 43 43 44 44 44 44 72 72 92 112 120 130 146 146 146 125 133 176 176 176 240 Greatest Overweight (x) 3 | . . . 1 1 3 2 2 1 1 1 1 1 1 2 1 1 1 1 1 1 . 1 2 Average Overweight (x) . | . . . . 1 1 1 1 1 1 1 1 . . 1 1 1 1 1 1 . . . . Largest Inventory Capacity 25 | 8 15 15 20 20 20 20 20 20 20 20 20 20 25 25 25 25 25 25 25 25 25 25 25 Average Capacity 21 | 7 11 15 19 20 20 20 20 20 20 20 20 20 24 25 25 25 25 25 25 25 25 25 24 Most Carried 25 | 2 15 15 20 19 20 20 20 20 20 20 20 20 25 25 25 25 25 25 25 25 21 25 25 Average Carried 21 | 1 9 14 19 19 19 19 19 19 19 19 19 19 23 24 24 24 24 24 24 24 20 21 22 Final Capacity 25 | 8 15 15 20 20 20 20 20 20 20 20 20 20 25 25 25 25 25 25 25 25 25 25 5 Final Carried 25 | 2 15 15 19 19 20 20 20 20 20 20 20 20 25 25 25 25 25 25 25 22 21 25 5 Class Distribution -------------------- 25% | Tank 24% | Scavenger-Tank 20% | Botlord-Gunner 8% | Scavenger-Gunner 6% | Mutant 5% | Scavenger-Skirmisher Dominant Class ---------------- Mutant | -10/Materials Mutant | -10/Mines Scavenger-Tank | -9/Materials Scavenger-Tank | -9/Mines Tank | -8/Materials Tank | -8/Garrison Tank | -8/Materials Tank | -8/Garrison Tank | -7/Factory Tank | -7/Garrison Tank | -6/Factory Scavenger-Tank | -6/Garrison Scavenger-Tank | -5/Factory Scavenger-Tank | -5/Garrison Scavenger-Skirmisher | -4/Factory Scavenger-Skirmisher | -3/Research Botlord-Gunner | -3/Garrison Botlord-Gunner | -2/Research Botlord-Gunner | -2/Garrison Botlord-Gunner | -2/Research Botlord-Gunner | -1/Access Botlord-Gunner | -1/Garrison Botlord-Gunner | -1/Access Resources | -11 -10 -10 -9 -9 -8 -8 -8 -8 -7 -7 -6 -6 -5 -5 -4 -3 -3 -2 -2 -2 -1 -1 -1 ----------- Run | Yrd Mat Min Mat Min Mat Gar Mat Gar Fac Gar Fac Gar Fac Gar Fac Res Gar Res Gar Res Acc Gar Acc Matter Collected 13254 | 318 604 123 910 37 438 846 597 457 . . 595 285 236 394 279 40 421 . 473 622 75 1330 4174 Remotely . | . . . . . . . . . . . . . . . . . . . . . . . . Salvage Created 23600 | 139 493 85 1813 143 1482 1096 801 629 . . 699 1095 853 1660 1389 121 1012 . 1171 1071 . 1282 6566 Parts 1033 | 7 23 5 121 9 68 63 55 46 . . 19 51 32 74 45 6 45 . 30 35 . 48 251 Haulers Intercepted 19 | . 1 . 6 . 2 . 3 . . . 2 . . . 1 . . . . . . . 4 Recyclers Shooed 17 | 1 1 . 1 . . . 1 . . . 2 . 1 . . . . . . . . . 10 Parts Field Recycled . | . . . . . . . . . . . . . . . . . . . . . . . . Retrieved Matter . | . . . . . . . . . . . . . . . . . . . . . . . . Parts Self-Destructed . | . . . . . . . . . . . . . . . . . . . . . . . . Prevented . | . . . . . . . . . . . . . . . . . . . . . . . . Parts Restored . | . . . . . . . . . . . . . . . . . . . . . . . . Kills | -11 -10 -10 -9 -9 -8 -8 -8 -8 -7 -7 -6 -6 -5 -5 -4 -3 -3 -2 -2 -2 -1 -1 -1 ------- Run | Yrd Mat Min Mat Min Mat Gar Mat Gar Fac Gar Fac Gar Fac Gar Fac Res Gar Res Gar Res Acc Gar Acc Combat Hostiles Destroyed 361 | . 11 4 32 3 25 31 13 15 . . 3 19 16 23 15 2 16 . 14 12 . 19 88 Melee 2 | . . . . . . . . . . . . . . . . . 1 . . . . . 1 Guns 146 | . 9 3 24 3 22 9 8 15 . . 1 . . 5 . . . . 1 7 . 8 31 Cannons 129 | . 2 1 2 . 2 13 5 . . . 2 16 10 12 14 2 9 . 8 2 . 3 26 AOE 56 | . . . 6 . 1 9 . . . . . 3 4 . . . . . . 1 . 7 25 Classes Destroyed 21 | 2 3 . 4 . 4 3 . 1 . . . . . . . . 1 . 1 . . . 2 Worker 14 | . . . 3 . 2 . 1 . . . . . 1 . 1 . . . . 1 . . 5 Builder 19 | . . . . . 1 . 3 . . . . . 2 . . . . . . 1 . . 12 Tunneler 3 | 2 . . . . . . . . . . . . . . . . . . . . . . 1 Hauler 19 | . 1 . 6 . 2 . 3 . . . 2 . . . 1 . . . . . . . 4 Recycler 23 | 1 2 . 6 . . . . . . . 2 . . . 2 . . . . 1 . . 9 Mechanic 1 | . . . . . . . . . . . . . . . . . . . . . . . 1 Operator 1 | . . . 1 . . . . . . . . . . . . . . . . . . . . Watcher 9 | . . . 3 . 2 . 2 . . . . . . . 1 . . . . 1 . . . Swarmer 42 | . 6 3 13 . . 8 3 4 . . . . . 2 . . . . . . . 3 . Cutter 4 | . . . . . . 1 . . . . . . . 2 . . . . . . . 1 . Saboteur 5 | . . . . . . . . . . . . . . . . . 2 . . . . . 3 Grunt 114 | . 5 1 11 3 12 10 1 2 . . . 8 9 5 5 . 1 . 5 3 . 3 30 Brawler 14 | . . . . . 2 . 1 1 . . . 4 . 1 . . . . . . . 1 4 Duelist 8 | . . . . . 3 . . 1 . . . 1 . . . . . . . . . 1 2 Protector 2 | . . . . . . . . . . . . . . . . . . . . . . . 2 Sentry 53 | . . . 8 . 7 4 7 2 . . 2 1 2 6 4 . 3 . 1 2 . 2 2 Specialist 11 | . . . . . . . . 1 . . . 4 . . . . 2 . . . . 2 2 Hunter 30 | . . . . . 1 3 1 1 . . 1 1 1 . . . 3 . 3 . . 4 11 Programmer 73 | . . . . . . 3 . 3 . . 1 . 4 6 6 2 4 . 3 7 . 3 31 Behemoth 6 | . . . . . . 2 . . . . . . . 2 . . 1 . . . . . 1 Executioner 2 | . . . . . . . . . . . . . . . . . . . 2 . . . . Butcher 1 | . . . . . . 1 . . . . . . . . . . . . . . . . . Best Kill Streak 13 | 3 3 3 6 3 4 4 9 5 . . 2 6 7 5 5 2 4 . 7 4 . 6 13 Combat Bots Only 11 | . 3 3 4 3 3 4 5 5 . . 1 6 6 5 5 2 4 . 7 3 . 6 11 Max Kills in Single Turn 4 | 1 1 1 2 1 1 3 2 2 . . 1 2 4 1 1 1 1 . 2 2 . 2 4 Gunslinging 1 | . . . . . . . . 1 . . . . . . . . . . . . . . . Exploded 3 | . . . 2 . 1 2 . . . . . 1 2 . . . . . . 1 . 2 3 Melee 1 | . . . . . . . . . . . . . . . . . 1 . . . . . 1 Uniques/NPCs Destroyed . | . . . . . . . . . . . . . . . . . . . . . . . . Combat | -11 -10 -10 -9 -9 -8 -8 -8 -8 -7 -7 -6 -6 -5 -5 -4 -3 -3 -2 -2 -2 -1 -1 -1 -------- Run | Yrd Mat Min Mat Min Mat Gar Mat Gar Fac Gar Fac Gar Fac Gar Fac Res Gar Res Gar Res Acc Gar Acc Hostile Shots Fired 2501 | . 67 18 124 9 92 128 72 73 . . 18 71 69 161 61 12 77 . 78 138 . 160 1073 Missed 651 | . 16 2 40 4 29 27 14 24 . . 10 17 13 43 10 3 25 . 29 31 . 50 264 Hits 1850 | . 51 16 84 5 63 101 58 49 . . 8 54 56 118 51 9 52 . 49 107 . 110 809 Melee 36 | . . . . . 3 1 . 2 . . . 3 1 2 1 . 1 . . . . 18 4 Projectile 1814 | . 51 16 84 5 60 100 58 47 . . 8 51 55 116 50 9 51 . 49 107 . 92 805 AOE 7 | . . . . . . . . . . . . . . 1 . . . . . . . 4 2 Critical Strikes 148 | . . . 2 . 6 4 3 4 . . . 4 3 4 5 . 1 . 4 16 . 14 78 Actively Blocked 95 | . . . . . . . . . . . . . . . . . 1 . . 5 . 14 75 Part Disruptions 9 | . . . . . . . . . . . . . . . . 2 . . . 1 . 1 5 Damage Taken 35687 | . 482 146 924 61 743 1874 696 445 . . 29 773 1127 2111 799 138 1167 . 956 2416 . 3198 17602 Core 2662 | . 84 29 42 . 19 170 38 92 . . . 82 58 85 21 . 131 . 136 62 . 249 1364 Absorbed by Shields 4296 | . . . . . 280 171 58 208 . . 36 405 . 577 267 71 128 . 452 . . 199 1444 Reduced by Siege Mode 282 | . . . . . . . . . . . . . . . . . . . . . . . 282 Redirected to Shielding 7 | . . . . . . . . . . . . . . . . . . . . . . 7 . Regen/Repaired (Parts) 73 | . . . . . . . . . . . . . . . 73 . . . . . . . . Core Remaining (%) 83 | 100 . 54 . 89 . . . 42 . 100 . 90 . 85 98 . 89 . . 86 . . . Volleys Fired 1094 | 8 35 8 96 7 73 92 41 42 . 3 22 41 25 64 31 9 46 . 40 33 . 92 286 Largest 5 | 2 2 2 3 3 3 3 3 3 . 1 4 4 4 4 4 4 4 . 4 4 . 5 5 Hottest 490 | 40 50 50 102 102 168 146 137 78 . 30 305 325 328 372 388 385 385 . 385 334 . 396 490 Shots Fired 3091 | 16 70 16 270 21 219 198 122 115 . 3 81 129 94 230 115 20 126 . 132 122 . 207 785 Gun 1656 | 16 59 8 252 21 214 89 90 115 . 2 69 . . 28 . . . . 53 65 . 124 451 Cannon 1275 | . 11 8 12 . 5 95 32 . . . 12 122 91 202 112 20 111 . 76 56 . 34 276 Launcher 77 | . . . 6 . . 14 . . . . . 4 3 . . . . . . . . 9 41 Special 83 | . . . . . . . . . . 1 . 3 . . 3 . 15 . 3 1 . 40 17 Kinetic 1350 | 16 70 16 193 14 80 109 106 115 . 2 69 . . . . . . . 47 34 . 56 423 Thermal 1427 | . . . 71 7 134 47 16 . . . 12 122 91 230 112 20 111 . 69 69 . 60 256 Explosive 77 | . . . 6 . . 14 . . . . . 4 3 . . . . . . . . 9 41 Electromagnetic 154 | . . . . . 5 28 . . . . . . . . . . . . 13 18 . 42 48 Robot Hit Streak 20 | 5 6 4 16 10 15 17 12 8 . 2 9 20 13 14 10 4 17 . 15 15 . 11 18 Robot Miss Streak 8 | 2 3 1 5 1 4 2 4 4 . . 4 4 4 2 2 1 2 . 3 3 . 8 7 Penetration Max 2 | . . . . . . 1 1 . . . . . . . . . . . 1 1 . 1 2 Secondary Targets 17 | . 1 . 3 . 2 1 3 4 . . . . . . . . . . . . . 1 2 Max Gunslinging Chain 1 | . 1 . 1 . 1 1 1 1 . . . . . . . . . . . . . 1 1 Shots Hit Robots 1784 | 10 39 10 160 16 149 116 80 73 . 1 47 71 54 112 70 7 67 . 84 82 . 105 431 Core Hits 863 | 4 20 4 70 6 67 67 29 26 . . 15 43 33 46 37 4 19 . 36 30 . 55 252 Critical Kills 28 | . 1 . . . 1 . . 1 . . . . . 2 1 . 6 . 4 3 . 2 7 Critical Parts Destroyed 11 | . . . . . . . 1 . . . . . . . . . . . . 1 . 1 8 Critical Strikes 83 | . 1 . 2 . 8 4 2 1 . . . . . 3 1 . 6 . 6 6 . 9 34 Burn 13 | . . . 1 . 7 1 . . . . . . . 1 . . . . . 1 . 2 . Meltdown 16 | . . . . . . . . . . . . . . 2 1 . 6 . 4 2 . . 1 Destroy 22 | . 1 . . . 1 . 1 1 . . . . . . . . . . . 2 . 3 13 Blast 25 | . . . 1 . . 3 1 . . . . . . . . . . . 2 . . 2 16 Corrupt 6 | . . . . . . . . . . . . . . . . . . . . 1 . 2 3 Smash 1 | . . . . . . . . . . . . . . . . . . . . . . . 1 Melee Attacks 7 | . . . . . 6 . . . . . . . . . . . . . . . . . 1 Impact 1 | . . . . . . . . . . . . . . . . . . . . . . . 1 Slashing 6 | . . . . . 6 . . . . . . . . . . . . . . . . . . Piercing . | . . . . . . . . . . . . . . . . . . . . . . . . Sneak Attacks 3 | . . . . . 2 . . . . . . . . . . . . . . . . . 1 Combat Hostiles . | . . . . . . . . . . . . . . . . . . . . . . . . Follow-up Attacks . | . . . . . . . . . . . . . . . . . . . . . . . . Damage Inflicted 62499 | 135 553 144 2863 253 2544 3447 1953 1343 . . 1100 2558 2660 3834 2686 302 2210 . 2576 3115 . 4236 23987 Guns 23041 | 135 447 88 2331 247 2180 1350 1328 1313 . . 792 . . 482 . . . . 710 1345 . 1636 8657 Cannons 25618 | . 106 56 141 . 102 1212 608 . . . 268 1796 1504 3347 2618 302 2186 . 1866 1380 . 639 7487 Explosions 13281 | . . . 368 . 112 885 . . . . . 762 1115 . . . . . . 390 . 1961 7688 Melee 213 | . . . . . 131 . . . . . . . . . . . . . . . . . 82 Ramming 346 | . . . 23 6 19 . 17 30 . . 40 . 41 5 68 . 24 . . . . . 73 Kinetic 20048 | 135 553 144 1729 158 806 1669 1635 1313 . . 792 . . . . . . . 588 603 . 717 9206 Thermal 26463 | . . . 743 89 1486 737 301 . . . 268 1796 1504 3829 2618 302 2186 . 1655 2105 . 949 5895 Explosive 12612 | . . . 368 . . 718 . . . . . 762 1115 . . . . . . . . 1961 7688 Electromagnetic 2817 | . . . . . 102 323 . . . . . . . . . . . . 333 407 . 609 1043 Impact 82 | . . . . . . . . . . . . . . . . . . . . . . . 82 Slashing 131 | . . . . . 131 . . . . . . . . . . . . . . . . . . Piercing . | . . . . . . . . . . . . . . . . . . . . . . . . Highest Corruption 73 | . . 1 . . . 2 2 4 . . 1 4 2 12 2 . 9 . . 11 . 18 73 Average Corruption 15 | . . 1 . . . 1 2 3 . . 1 3 1 6 1 . 5 . . 8 . 14 42 Corruption Purged 2 | . . . . . . . . . . . . . . . 2 . . . . . . . . Corruption Blocked . | . . . . . . . . . . . . . . . . . . . . . . . . Effects 645 | . . 1 . . . 27 17 15 . . 3 31 12 61 7 . 33 . . 29 . 68 341 Message Errors 150 | . . . . . . 12 5 2 . . . 9 3 13 2 . 12 . . 9 . 10 73 Matter Fused 136 | . . 1 . . . 3 5 5 . . 1 6 3 21 . . 11 . . 7 . 19 54 Heat Flow Errors 56 | . . . . . . 2 1 1 . . . 4 1 6 3 . 1 . . 2 . 6 29 Energy Discharges 58 | . . . . . . 1 1 1 . . . 4 1 7 1 . 4 . . 2 . 5 31 Parts Rejected 8 | . . . . . . 1 . . . . . . . . . . . . . . . 1 6 Parts Fused 10 | . . . . . . . 2 . . . . . . . . . . . . . . . 8 Data Loss (minor) 63 | . . . . . . 1 . 1 . . 2 4 1 3 1 . 3 . . 3 . 12 32 Data Loss (major) 30 | . . . . . . 2 1 . . . . 3 . 4 . . 1 . . . . 8 11 Misfires 21 | . . . . . . 3 1 1 . . . . 3 3 . . . . . 2 . 1 7 Alerts 15 | . . . . . . 1 . 2 . . . 1 . 2 . . . . . 1 . 1 7 Misdirections 22 | . . . . . . . . . . . . . . . . . . . . 1 . . 21 Weapon Failures 76 | . . . . . . 1 1 2 . . . . . 2 . . 1 . . 2 . 5 62 Overload Shots . | . . . . . . . . . . . . . . . . . . . . . . . . Overflow Damage 1237 | . . 12 . . 37 27 17 . . . 5 1 70 76 54 1 107 . . 11 . 77 742 Projectiles 804 | . . 12 . . . 16 17 . . . 4 1 35 76 54 1 107 . . . . 40 441 Explosions 317 | . . . . . 6 11 . . . . . . 33 . . . . . . 11 . 37 219 Melee 116 | . . . . . 31 . . . . . 1 . 2 . . . . . . . . . 82 Knockbacks 45 | . 1 2 1 . . 4 2 . . . . . 1 . . . . . 2 3 . 4 25 Impact 3 | . . . 1 . . . . . . . . . 1 . . . . . . . . . 1 Kinetic 38 | . 1 1 . . . 4 2 . . . . . . . . . . . 1 3 . 3 23 Secondary 4 | . . 1 . . . . . . . . . . . . . . . . 1 . . 1 1 Self-Inflicted Damage 912 | . . . 40 . . 27 . . . . . 113 . . . . . . . 74 . 75 583 Shots 18 | . . . 1 . . 1 . . . . . 3 . . . . . . . 1 . 1 11 Rammed 30 | . . . 3 1 5 . 1 1 . . 2 . 2 1 6 . . . . . . . 8 Targets Rammed 33 | . . . 3 1 5 . 1 1 . . 2 . 2 1 6 . 2 . . . . . 9 Kicked 2 | . . . . . . . . . . . . . . . . . 2 . . . . . . Crushed 1 | . . . . . . . . . . . . . . . . . . . . . . . 1 Highest Temperature 621 | . 7 . 300 2 235 316 390 150 . . 150 344 111 422 389 159 318 . 477 432 . 440 621 Average Temperature 103 | . 3 . 134 2 68 82 148 60 . . 45 108 17 93 108 81 58 . 106 138 . 101 126 Received Heat Transfer 4015 | . 102 . 273 36 389 770 189 36 . . . 196 249 317 47 . 39 . 28 63 . 133 1148 Effects 40 | . . . . . . 3 2 . . . . . . 2 . . . . 6 1 . 2 24 Shutdowns 14 | . . . . . . . 1 . . . . . . 1 . . . . 2 . . 2 8 Energy Bleed 2 | . . . . . . . . . . . . . . . . . . . . . . . 2 Interference 17 | . . . . . . 3 . . . . . . . 1 . . . . 4 . . . 9 Matter Decay 2 | . . . . . . . . . . . . . . . . . . . . . . . 2 Short Circuit 3 | . . . . . . . 1 . . . . . . . . . . . . 1 . . 1 Damage (minor) 2 | . . . . . . . . . . . . . . . . . . . . . . . 2 Siege Activations 5 | . . . . . . . . . . . . . . . . . . . . . . . 5 Total Turns 54 | . . . . . . . . . . . . . . . . . . . . . . . 54 Longest Duration 18 | . . . . . . . . . . . . . . . . . . . . . . . 18 Martial Activations . | . . . . . . . . . . . . . . . . . . . . . . . . Shielding Activations . | . . . . . . . . . . . . . . . . . . . . . . . . Robots Disrupted . | . . . . . . . . . . . . . . . . . . . . . . . . Combat Hostiles . | . . . . . . . . . . . . . . . . . . . . . . . . Robots Corrupted 8 | . . . . . . . . . . . 1 . 1 . . . . . 1 . . 1 4 Combat Hostiles 6 | . . . . . . . . . . . . . . . . . . . 1 . . 1 4 Parts Fried 32 | . . . . . 1 1 . . . . . . 5 . . . . . 1 . . 6 18 Impact Corruptions 3 | . . . . . . . . . . . 1 . 1 . . . . . . . . . 1 Robots Melted 23 | . . . . . . . . . . . . . 2 6 1 . 6 . 5 2 . . 1 Combat Hostiles 22 | . . . . . . . . . . . . . 2 6 1 . 6 . 4 2 . . 1 Parts Melted 131 | . . . 3 . 8 2 . . . . . 10 11 17 13 3 21 . 7 10 . 3 23 Heat Transferred 35375 | . . . 1887 222 3972 1117 407 . . . 474 3057 2418 5707 2998 259 2311 . 1776 1810 . 1443 5517 Parts Sabotaged 2 | . . . . . . . . . . . . . 1 . . . 1 . . . . . . Parts Stolen . | . . . . . . . . . . . . . . . . . . . . . . . . Parts Stripped . | . . . . . . . . . . . . . . . . . . . . . . . . Power Chain Reactions 5 | . . . . . 1 2 . . . . . . . . . . . . . 2 . . . Alert | -11 -10 -10 -9 -9 -8 -8 -8 -8 -7 -7 -6 -6 -5 -5 -4 -3 -3 -2 -2 -2 -1 -1 -1 ------- Run | Yrd Mat Min Mat Min Mat Gar Mat Gar Fac Gar Fac Gar Fac Gar Fac Res Gar Res Gar Res Acc Gar Acc Maximum Alert Level 5 | . . . 1 . 1 4 3 3 2 2 1 3 2 4 3 1 3 2 2 1 . 2 5 Low Security (%) 32 | 100 100 100 88 100 87 16 . . . 3 . 8 . . . . 8 69 11 86 100 16 19 Level 1 22 | . . . 11 . 12 7 . . 93 57 99 8 21 10 6 99 32 . 50 13 . 32 33 Level 2 28 | . . . . . . 31 97 68 6 38 . 39 78 33 89 . 32 30 37 . . 51 8 Level 3 11 | . . . . . . 41 2 31 . . . 43 . 37 3 . 25 . . . . . 11 Level 4 2 | . . . . . . 2 . . . . . . . 18 . . . . . . . . 8 Level 5 1 | . . . . . . . . . . . . . . . . . . . . . . . 9 High Security 1 | . . . . . . . . . . . . . . . . . . . . . . . 8 Max Security . | . . . . . . . . . . . . . . . . . . . . . . . . Peak Influence 2456 | 10 97 75 361 70 295 1166 714 764 401 591 350 928 548 1405 737 300 845 474 685 384 51 636 2456 Initial 737 | . . . . 37 . 20 568 410 401 168 310 146 487 295 737 294 144 474 85 384 51 24 381 Average 428 | 1 29 11 93 6 115 616 596 600 325 397 258 581 442 802 550 254 484 237 370 151 41 365 767 Influence Increases 14876 | 15 354 115 983 70 760 1226 492 364 . 423 371 822 535 1120 479 68 821 . 670 446 . 1052 3690 Destroy 0b10 Robot/C 7900 | . 220 80 640 60 500 680 260 300 . 40 180 540 340 580 300 40 380 . 360 240 . 440 1720 Destroy 0b10 Robot/NC 485 | 15 15 . 95 . 35 . 45 . . . 25 . 15 5 25 . . . 10 20 . 10 170 Destroy Leader 1386 | . 42 20 168 10 148 30 110 30 . . 56 30 70 20 84 10 40 . 60 62 . 50 346 Allied During Kill 471 | . . . . . . 48 . . . 14 70 43 10 39 . . 48 . 13 . . 112 74 Successful Hack 207 | . 14 . 40 . 25 18 4 14 . 14 . 14 . 28 16 . 7 . . 13 . . . Disable Machine 285 | . 15 15 . . 15 . 45 . . . 30 . 30 15 . . . . . . . 15 105 Anti-Garrison Action 1850 | . . . . . . 300 . . . 350 . 100 . 250 . . 300 . 200 . . 200 150 Destroy Structure 1662 | . 3 . 25 . 7 105 13 20 . 5 10 80 70 183 54 18 46 . 27 111 . 165 720 Partial Spotted 60 | . . . . . . . 15 . . . . . . . . . . . . . . 15 30 Lose Combat Pursuer 570 | . 45 . 15 . 30 45 . . . . . 15 . . . . . . . . . 45 375 Influence Decreases 12435 | 15 354 115 885 168 728 92 1026 232 523 73 753 103 1041 137 1322 438 168 731 99 1045 55 447 1885 Entered New Map 4223 | . . . . 61 . 12 598 222 363 73 281 63 441 127 668 268 48 371 29 301 35 7 255 Time Decay 5462 | 15 354 115 575 107 568 . 398 . 160 . 452 . 550 . 614 170 . 60 . 534 20 . 770 Lost Part 1170 | . . . 10 . 10 60 20 10 . . . 20 10 10 . . 20 . 30 60 . 200 710 Lost Ally 680 | . . . . . . 20 10 . . . 20 20 40 . 40 . 100 . 40 . . 240 150 Purge Threat 900 | . . . 300 . 150 . . . . . . . . . . . . 300 . 150 . . . Squads Dispatched 71 | . . . 4 . 7 . 4 . . . 2 . 4 . 6 1 . . . 4 . . 39 Investigation 2 | . . . . . 2 . . . . . . . . . . . . . . . . . . Extermination 21 | . . . . . . . . . . . 1 . 3 . 3 1 . . . 3 . . 10 Reinforcement 14 | . . . 4 . 2 . . . . . 1 . . . 1 . . . . 1 . . 5 Assault 25 | . . . . . . . . . . . . . 1 . 2 . . . . . . . 22 Garrison 9 | . . . . . 3 . 4 . . . . . . . . . . . . . . . 2 Intercept . | . . . . . . . . . . . . . . . . . . . . . . . . Searches Triggered . | . . . . . . . . . . . . . . . . . . . . . . . . Unchained Authorized 2 | . . . . . . . . . . . . . . . . . . . . 1 . . 1 Construction Impeded 3 | . . . . . . . . . . . . . . . . . . . . . . . 3 Haulers Reinforced 2 | . . . . . . . . . . . . . . . . . . . . 1 . . 1 Active Scanning Responses . | . . . . . . . . . . . . . . . . . . . . . . . . Cargo Convoy Interrupts . | . . . . . . . . . . . . . . . . . . . . . . . . Alert ID Control Effect 20 | . . . . . . . . . . . . . . . . . 2 . . . . 7 11 Stealth | -11 -10 -10 -9 -9 -8 -8 -8 -8 -7 -7 -6 -6 -5 -5 -4 -3 -3 -2 -2 -2 -1 -1 -1 --------- Run | Yrd Mat Min Mat Min Mat Gar Mat Gar Fac Gar Fac Gar Fac Gar Fac Res Gar Res Gar Res Acc Gar Acc Distress Signals 24 | . 1 . 7 . 2 . 2 . . . 1 . 1 . 2 . . . . 1 . . 7 Communications Jammed 1 | . . . . . . . . . . . . . . . . . . . . . . . 1 Distress Signals 1 | . . . . . . . . . . . . . . . . . . . . . . . 1 Times Spotted 608 | . 24 4 55 3 35 34 21 15 . 1 13 23 18 28 24 2 26 . 21 19 . 52 190 Peak Tracking Total 18 | . 4 3 6 3 5 5 6 4 . . 5 6 5 5 5 2 4 . 6 3 . 6 18 Tactical Retreats 26 | . 2 . 1 . 2 1 . . . . . 1 . . . . . . . . . 2 17 Traps | -11 -10 -10 -9 -9 -8 -8 -8 -8 -7 -7 -6 -6 -5 -5 -4 -3 -3 -2 -2 -2 -1 -1 -1 ------- Run | Yrd Mat Min Mat Min Mat Gar Mat Gar Fac Gar Fac Gar Fac Gar Fac Res Gar Res Gar Res Acc Gar Acc Traps Triggered 42 | . . . . . . 6 . 3 . 2 . 3 . 6 . . 5 . 3 . . 11 3 Indirectly . | . . . . . . . . . . . . . . . . . . . . . . . . Trap Hack Attempts . | . . . . . . . . . . . . . . . . . . . . . . . . Triggered . | . . . . . . . . . . . . . . . . . . . . . . . . Disarmed . | . . . . . . . . . . . . . . . . . . . . . . . . Reprogrammed . | . . . . . . . . . . . . . . . . . . . . . . . . Reused . | . . . . . . . . . . . . . . . . . . . . . . . . Traps Extracted . | . . . . . . . . . . . . . . . . . . . . . . . . Installed . | . . . . . . . . . . . . . . . . . . . . . . . . Triggered . | . . . . . . . . . . . . . . . . . . . . . . . . Machines | -11 -10 -10 -9 -9 -8 -8 -8 -8 -7 -7 -6 -6 -5 -5 -4 -3 -3 -2 -2 -2 -1 -1 -1 ---------- Run | Yrd Mat Min Mat Min Mat Gar Mat Gar Fac Gar Fac Gar Fac Gar Fac Res Gar Res Gar Res Acc Gar Acc Machines Disabled 37 | . 1 1 . . 1 . 3 1 . 1 2 1 2 6 . . 5 . 2 . . 3 8 Max in Single Turn 1 | . 1 1 . . 1 . 1 1 . 1 1 1 1 1 . . 1 . 1 . . 1 1 Garrison Access 1 | . . . . . . . . . . . . . . . . . . . . . . . 1 Garrison Relay 11 | . . . . . . . . . . 1 . . . 1 . . 4 . 2 . . 3 . Machines Repaired . | . . . . . . . . . . . . . . . . . . . . . . . . Machines Dismantled . | . . . . . . . . . . . . . . . . . . . . . . . . Machines Sabotaged . | . . . . . . . . . . . . . . . . . . . . . . . . Overloaded Fab Kills . | . . . . . . . . . . . . . . . . . . . . . . . . Hacking | -11 -10 -10 -9 -9 -8 -8 -8 -8 -7 -7 -6 -6 -5 -5 -4 -3 -3 -2 -2 -2 -1 -1 -1 --------- Run | Yrd Mat Min Mat Min Mat Gar Mat Gar Fac Gar Fac Gar Fac Gar Fac Res Gar Res Gar Res Acc Gar Acc Machines Accessed 62 | . 6 1 10 . 7 2 3 1 1 1 2 1 3 2 8 1 2 2 3 2 1 3 . Terminals 42 | . 6 . 8 . 4 2 2 1 . 1 . 1 1 2 3 . 2 1 3 2 . 3 . Fabricators 4 | . . . . . . . . . . . 1 . 1 . 2 . . . . . . . . Repair Stations 1 | . . . . . . . . . . . . . . . 1 . . . . . . . . Recycling Units 2 | . . . 1 . 1 . . . . . . . . . . . . . . . . . . Scanalyzers 4 | . . . 1 . 1 . . . . . . . . . 2 . . . . . . . . Garrison Access 8 | . . . . . 1 . 1 . 1 . 1 . 1 . . 1 . 1 . . 1 . . Total Hacks 127 | . 11 1 30 . 20 2 6 2 1 1 3 1 6 2 17 1 4 3 5 5 1 5 . Successful 68 | . 5 1 19 . 10 2 3 1 1 1 1 1 3 2 8 1 1 3 1 3 1 . . Failed 58 | . 6 . 10 . 10 . 3 1 . . 2 . 3 . 9 . 3 . 4 2 . 5 . Catastrophic 7 | . 1 . 2 . . . . . . . . . 1 . . . 1 . . . . 2 . Database Lockouts 1 | . . . 1 . . . . . . . . . . . . . . . . . . . . Manual 48 | . 11 . 16 . 6 . 4 . . . 2 . 4 . 2 . . 1 . 2 . . . Terminals 90 | . 11 . 22 . 13 2 5 2 . 1 . 1 3 2 7 . 4 2 5 5 . 5 . Fabricators 6 | . . . . . . . . . . . 2 . 2 . 2 . . . . . . . . Repair Stations 3 | . . . . . . . . . . . . . . . 3 . . . . . . . . Recycling Units 5 | . . . 2 . 3 . . . . . . . . . . . . . . . . . . Scanalyzers 14 | . . . 6 . 3 . . . . . . . . . 5 . . . . . . . . Garrison Access 8 | . . . . . 1 . 1 . 1 . 1 . 1 . . 1 . 1 . . 1 . . Terminal Hacks 34 | . 2 1 11 . 2 2 1 1 . 1 . 1 1 2 2 . 1 2 1 3 . . . Record 2 | . . . . . . . . . . . . . 1 . . . . . . 1 . . . Part Schematic 1 | . . . . . . . . . . . . . . . . . . . . 1 . . . Robot Analysis 4 | . 2 . 2 . . . . . . . . . . . . . . . . . . . . Open Door 3 | . . 1 . . . 1 . . . . . . . . . . 1 . . . . . . Branch Access Points 1 | . . . . . . . . . . . . . . . 1 . . . . . . . . Emergency Access Points 3 | . . . . . . 1 . . . 1 . . . 1 . . . . . . . . . Alert Level 4 | . . . 3 . 1 . . . . . . . . . . . . . . . . . . Unreport Threat 6 | . . . 2 . 1 . . . . . . . . . . . . 2 . 1 . . . Locate Traps 3 | . . . 2 . . . . . . . . . . . 1 . . . . . . . . Hauler Manifests 3 | . . . 2 . . . 1 . . . . . . . . . . . . . . . . Garrison Registry 3 | . . . . . . . . 1 . . . 1 . 1 . . . . . . . . . Patrol Navigation 1 | . . . . . . . . . . . . . . . . . . . 1 . . . . Fabricator Hacks . | . . . . . . . . . . . . . . . . . . . . . . . . Repair Station Hacks 2 | . . . . . . . . . . . . . . . 2 . . . . . . . . Scan Component 1 | . . . . . . . . . . . . . . . 1 . . . . . . . . Repair 1 | . . . . . . . . . . . . . . . 1 . . . . . . . . Recycling Unit Hacks 1 | . . . . . 1 . . . . . . . . . . . . . . . . . . Retrieve Components 1 | . . . . . 1 . . . . . . . . . . . . . . . . . . Scanalyzer 11 | . . . 6 . 1 . . . . . . . . . 4 . . . . . . . . Insert Component 3 | . . . 3 . . . . . . . . . . . . . . . . . . . . Analyze 3 | . . . 3 . . . . . . . . . . . . . . . . . . . . Retrieve Study 5 | . . . . . 1 . . . . . . . . . 4 . . . . . . . . Garrison Access Hacks 8 | . . . . . 1 . 1 . 1 . 1 . 1 . . 1 . 1 . . 1 . . Unlock Access 8 | . . . . . 1 . 1 . 1 . 1 . 1 . . 1 . 1 . . 1 . . Unauthorized Hacks 12 | . 3 . 2 . 5 . 1 . . . . . 1 . . . . . . . . . . Terminals 11 | . 3 . 2 . 5 . 1 . . . . . . . . . . . . . . . . Assimilate 1 | . . . . . 1 . . . . . . . . . . . . . . . . . . Botnet 9 | . 3 . 2 . 3 . 1 . . . . . . . . . . . . . . . . Operators 1 | . . . . . 1 . . . . . . . . . . . . . . . . . . Fabricators 1 | . . . . . . . . . . . . . 1 . . . . . . . . . . Haulers 1 | . . . . . . . . . . . . . 1 . . . . . . . . . . Repair Stations . | . . . . . . . . . . . . . . . . . . . . . . . . Recycling Units . | . . . . . . . . . . . . . . . . . . . . . . . . Scanalyzers . | . . . . . . . . . . . . . . . . . . . . . . . . Garrison Access . | . . . . . . . . . . . . . . . . . . . . . . . . Data Cores Recovered 1 | . . . 1 . . . . . . . . . . . . . . . . . . . . Used . | . . . . . . . . . . . . . . . . . . . . . . . . Hacking Detections 44 | . 5 . 7 . 5 1 1 1 . 1 1 . 2 1 8 . 2 2 3 1 . 3 . Full Trace Events 3 | . . . 1 . 2 . . . . . . . . . . . . . . . . . . Feedback Events . | . . . . . . . . . . . . . . . . . . . . . . . . Feedback Blocked . | . . . . . . . . . . . . . . . . . . . . . . . . Robot Schematics Acquired . | . . . . . . . . . . . . . . . . . . . . . . . . Robots Built . | . . . . . . . . . . . . . . . . . . . . . . . . Authchips . | . . . . . . . . . . . . . . . . . . . . . . . . Time . | . . . . . . . . . . . . . . . . . . . . . . . . Total Robot Build Rating . | . . . . . . . . . . . . . . . . . . . . . . . . Part Schematics Acquired 4 | . . . 3 . . . . . . . . . . . . . . . . 1 . . . Parts Built . | . . . . . . . . . . . . . . . . . . . . . . . . Authchips . | . . . . . . . . . . . . . . . . . . . . . . . . Time . | . . . . . . . . . . . . . . . . . . . . . . . . Total Part Build Rating . | . . . . . . . . . . . . . . . . . . . . . . . . Part Studies Acquired 5 | . . . . . 1 . . . . . . . . . 4 . . . . . . . . Parts Repaired 1 | . . . . . . . . . . . . . . . 1 . . . . . . . . Time 56 | . . . . . . . . . . . . . . . 56 . . . . . . . . Parts Recycled . | . . . . . . . . . . . . . . . . . . . . . . . . Recycled Matter . | . . . . . . . . . . . . . . . . . . . . . . . . Retrieved Matter . | . . . . . . . . . . . . . . . . . . . . . . . . Retrieved Components 5 | . . . . . 5 . . . . . . . . . . . . . . . . . . Parts Scanalyzed 3 | . . . 3 . . . . . . . . . . . . . . . . . . . . Part Schematics Acquired 3 | . . . 3 . . . . . . . . . . . . . . . . . . . . Parts Damaged . | . . . . . . . . . . . . . . . . . . . . . . . . Bothacking | -11 -10 -10 -9 -9 -8 -8 -8 -8 -7 -7 -6 -6 -5 -5 -4 -3 -3 -2 -2 -2 -1 -1 -1 ------------ Run | Yrd Mat Min Mat Min Mat Gar Mat Gar Fac Gar Fac Gar Fac Gar Fac Res Gar Res Gar Res Acc Gar Acc Used RIF Installer 11 | . . . . . . 2 . 1 . 2 . 1 . 2 . . 1 . 1 . . 1 . Hotswap 1 | . . . . . . . . 1 . . . . . . . . . . . . . . . Code Merge 1 | . . . . . . . . . . . . . . . . . . . . . . 1 . Command Fork 1 | . . . . . . . . . . . . . . . . . 1 . . . . . . Signal Jammer 1 | . . . . . . 1 . . . . . . . . . . . . . . . . . Zone Cloak 1 | . . . . . . . . . . . . . . . . . . . 1 . . . . Robot Detection 1 | . . . . . . . . . . . . 1 . . . . . . . . . . . Patrol Navigation 1 | . . . . . . . . . . 1 . . . . . . . . . . . . . Alert ID Control 1 | . . . . . . . . . . 1 . . . . . . . . . . . . . Structural Interface 1 | . . . . . . . . . . . . . . 1 . . . . . . . . . Crosswire 1 | . . . . . . . . . . . . . . 1 . . . . . . . . . Robots Hacked 34 | . . . . . . . . . . . . . . . 2 . 5 . 2 1 . 16 8 Non-combat . | . . . . . . . . . . . . . . . . . . . . . . . . Combat 34 | . . . . . . . . . . . . . . . 2 . 5 . 2 1 . 16 8 Robot Hacks Applied 35 | . . . . . . . . . . . . . . . 2 . 5 . 2 1 . 16 9 parse_system 1 | . . . . . . . . . . . . . . . . . . . . . . . 1 amplify_resonance 13 | . . . . . . . . . . . . . . . . . 3 . 1 1 . 7 1 reboot_system 2 | . . . . . . . . . . . . . . . . . 1 . . . . . 1 overwrite_iff 4 | . . . . . . . . . . . . . . . 1 . . . . . . 3 . formatsys_high 15 | . . . . . . . . . . . . . . . 1 . 1 . 1 . . 6 6 Relay Couplers Released 56 | . . . . . . . . . . 9 . . . 5 . . 17 . 8 . . 13 4 Machine Destruction 49 | . . . . . . . . . . 5 . . . 5 . . 17 . 8 . . 13 1 Programmers 7 | . . . . . . . . . . 4 . . . . . . . . . . . . 3 Attached 12 | . . . . . . . . . . . . . . 1 . . 4 . 2 . . 4 1 Crosswired 13 | . . . . . . . . . . . . . . 2 . . 6 . 2 . . 3 . Merged Code Value 6 | . . . . . . . . . . . . . . . . . . . . . . 6 . Fabnet Peak Effective % . | . . . . . . . . . . . . . . . . . . . . . . . . Robots Rewired 15 | . . . . . . . . . . 4 . 3 . 1 . . 4 . . . . 3 . Allies Hacked 1 | . . . . . . . . . . . . . . . . . . . . . . . 1 Hacks Repelled . | . . . . . . . . . . . . . . . . . . . . . . . . Allies | -11 -10 -10 -9 -9 -8 -8 -8 -8 -7 -7 -6 -6 -5 -5 -4 -3 -3 -2 -2 -2 -1 -1 -1 -------- Run | Yrd Mat Min Mat Min Mat Gar Mat Gar Fac Gar Fac Gar Fac Gar Fac Res Gar Res Gar Res Acc Gar Acc Total Allies 45 | . . . . . 1 2 . . . 6 . 3 . 1 2 . 6 . 1 . . 14 9 Largest Group 6 | . . . . . 1 3 1 . . 5 5 3 3 1 1 . 4 1 1 . . 6 4 Highest-Rated Group 366 | . . . . . 10 55 10 . . 206 206 96 96 148 58 . 224 38 69 . . 366 174 Highest-Rated Ally 148 | . . . . . 10 25 10 . . 95 95 88 32 148 58 . 56 38 69 . . 64 64 Total Orders 10 | . . . . . . 8 . . . . . . . . . . . . . . . . 2 STAY 4 | . . . . . . 4 . . . . . . . . . . . . . . . . . FOLLOW 4 | . . . . . . 4 . . . . . . . . . . . . . . . . . EXPLORE 2 | . . . . . . . . . . . . . . . . . . . . . . . 2 Ally Attacks 346 | . . . . . . 9 . . . 10 53 27 9 32 5 . 48 . 10 . . 62 81 Total Damage 9779 | . . . . . . 317 . . . 233 1174 935 281 889 188 . 1342 . 466 . . 1568 2386 Kills 59 | . . . . . . 3 . . . 2 8 8 2 6 . . 5 . 4 . . 10 11 Allies Corrupted 1 | . . . . . . . . . . . . . . . . . . . . . . . 1 Allies Melted 1 | . . . . . . . . . . . . . . . 1 . . . . . . . . Intel | -11 -10 -10 -9 -9 -8 -8 -8 -8 -7 -7 -6 -6 -5 -5 -4 -3 -3 -2 -2 -2 -1 -1 -1 ------- Run | Yrd Mat Min Mat Min Mat Gar Mat Gar Fac Gar Fac Gar Fac Gar Fac Res Gar Res Gar Res Acc Gar Acc Active Infowar (turns) 6685 | 44 1226 654 290 . . . . . . . 242 . . . 835 343 2 59 4 961 58 266 1701 Sensors 3895 | . . 2 . . . . . . . . 242 . . . 835 319 . 59 3 959 58 3 1415 Terrain 2010 | . . . . . . . . . . . . . . . . 343 2 58 4 335 57 4 1207 Seismic 2212 | 44 1226 652 290 . . . . . . . . . . . . . . . . . . . . Jamming 263 | . . . . . . . . . . . . . . . . . . . . . . 262 1 Robot Analysis Total 4 | . 2 . 2 . . . . . . . . . . . . . . . . . . . . Derelict Logs Recovered 3 | . . 1 . 2 . . . . . . . . . . . . . . . . . . . Drone Launches 3 | . . . . . . . . . . . . . . . . . . . . . . . 3 Drone Recoveries 2 | . . . . . . . . . . . . . . . . . . . . . . . 2 Exploration | -11 -10 -10 -9 -9 -8 -8 -8 -8 -7 -7 -6 -6 -5 -5 -4 -3 -3 -2 -2 -2 -1 -1 -1 ------------- Run | Yrd Mat Min Mat Min Mat Gar Mat Gar Fac Gar Fac Gar Fac Gar Fac Res Gar Res Gar Res Acc Gar Acc Turns Passed 32363 | 132 1226 662 2453 1055 2073 2163 949 710 321 1036 1139 1515 1585 1919 2026 343 1642 126 1253 1504 58 1473 5000 Spaces Moved 13134 | 62 675 382 865 430 810 872 397 302 155 485 476 630 580 630 774 134 674 58 533 505 45 650 2010 Core 168 | 2 . . . . . . . . . . . . . . . . . . . . . . 166 Treads 10395 | 60 675 382 865 430 810 872 397 302 155 485 476 630 580 630 774 134 201 . . . . . 1537 Legs 2436 | . . . . . . . . . . . . . . . . . 473 58 533 505 45 650 172 Wheels . | . . . . . . . . . . . . . . . . . . . . . . . . Hover . | . . . . . . . . . . . . . . . . . . . . . . . . Flight 135 | . . . . . . . . . . . . . . . . . . . . . . . 135 Fastest Speed 34 | 50 160 160 160 240 185 185 185 185 203 203 212 155 165 240 216 227 201 201 193 113 113 113 34 Average Speed 196 | 156 160 160 228 240 211 205 193 185 203 203 212 207 245 244 225 227 208 201 195 191 113 163 144 Slowest Speed 385 | 160 160 160 240 240 385 225 225 185 203 203 212 215 253 320 240 227 227 201 201 212 113 190 340 Overloaded Moves . | . . . . . . . . . . . . . . . . . . . . . . . . Propulsion Burnouts . | . . . . . . . . . . . . . . . . . . . . . . . . Robots Hopped 8 | . . . . . . 1 . . . . . . . . . . . . . . . . 7 Potential Cave-ins 8 | . . . . . . . . . . . . . . . . . . . . . . . 8 Cave-ins Triggered . | . . . . . . . . . . . . . . . . . . . . . . . . Exploration Rate (%) 44 | 3 90 87 94 94 58 78 39 40 4 72 14 38 17 66 26 4 71 2 61 12 2 74 29 Regions Visited 23 Branch Regions 2 Pre-discovered Areas . | . . . . . . . . . . . . . . . . . . . . . . . . Known Exits Taken 10 | . . . . . 1 . 1 . 1 . 1 . 1 . 1 1 . 1 . 1 1 . . Unknown Exits Taken 5 | 1 1 1 1 1 . . . . . . . . . . . . . . . . . . . Scrap Searched 2 | . . 1 . 1 . . . . . . . . . . . . . . . . . . . Spaces Dug 17 | . . . . . . . . . . . . . . . 3 6 . . . . . . 8 Terrain Destroyed 666 | . . . 26 . 3 10 10 1 . . 2 18 44 12 27 10 10 . 7 38 . 88 360 Melee . | . . . . . . . . . . . . . . . . . . . . . . . . Projectile 223 | . . . . . . 2 10 1 . . 2 2 11 12 27 10 10 . 7 23 . 19 87 AOE 440 | . . . 26 . 3 8 . . . . . 16 33 . . . . . . 15 . 69 270 Terrain Rammed . | . . . . . . . . . . . . . . . . . . . . . . . . Walls Destroyed . | . . . . . . . . . . . . . . . . . . . . . . . . Machines Disabled . | . . . . . . . . . . . . . . . . . . . . . . . . Actions | -11 -10 -10 -9 -9 -8 -8 -8 -8 -7 -7 -6 -6 -5 -5 -4 -3 -3 -2 -2 -2 -1 -1 -1 --------- Run | Yrd Mat Min Mat Min Mat Gar Mat Gar Fac Gar Fac Gar Fac Gar Fac Res Gar Res Gar Res Acc Gar Acc Total 17558 | 78 758 417 1148 437 1004 1093 504 385 161 538 564 758 686 870 973 157 832 66 655 958 51 934 3531 Wait 2141 | . 11 21 107 . 48 68 24 27 . 4 14 44 37 118 124 8 55 2 44 349 . 50 986 Move 13104 | 61 674 381 864 429 810 869 397 301 155 484 476 629 580 629 773 134 673 58 532 504 45 649 1997 Hop 7 | . . . . . . 1 . . . . . . . . . . . . . . . . 6 Pick Up 209 | 2 19 . 19 . 17 15 9 3 2 5 11 8 11 3 2 2 10 2 . 10 . 17 42 Fast Attach 156 | 7 1 3 5 . 1 3 5 . . 1 7 3 5 10 8 . 3 . 7 14 1 21 51 Attach 113 | . . . 3 . 4 7 3 2 2 . 4 1 2 2 1 2 2 2 3 8 2 11 52 Detach 33 | . . 1 2 . . . 1 . . . 1 . . . 1 . . . 4 2 1 8 12 Swap 235 | . 6 . 19 . 17 13 7 2 1 2 9 12 9 11 18 2 18 2 10 19 2 17 39 Drop 288 | . 12 3 30 . 23 15 16 3 1 7 18 14 15 20 9 . 13 . 5 19 . 17 48 Fire 1094 | 8 35 8 96 7 73 92 41 42 . 3 22 41 25 64 31 9 46 . 40 33 . 92 286 Melee 7 | . . . . . 6 . . . . . . . . . . . . . . . . . 1 Ram 2 | . . . . . . . . . . . . . . . . . . . . . . . 2 Kick 2 | . . . . . . . . . . . . . . . . . 2 . . . . . . Crush 29 | . . . 3 1 5 . 1 1 . . 2 . 2 1 6 . . . . . . . 7 Escape Stasis 98 | . . . . . . 10 . 4 . . . 6 . 8 . . 9 . 10 . . 51 . Rewire 40 | . . . . . . . . . . 32 . . . 4 . . 1 . . . . 1 2 Trap . | . . . . . . . . . . . . . . . . . . . . . . . . Miscellaneous . | . . . . . . . . . . . . . . . . . . . . . . . . Route ------- -11/Scrapyard -10/Materials (discovered 4 exits: *Mat x3 / *Min) -10/Mines (discovered 4 exits: *Mat x2 / [*Exi] / *Sub) -9/Materials (discovered 4 exits: *Mat x3 / [*Min]) -9/Mines (discovered 2 exits: *Mat x2) -8/Materials (discovered 3 exits: *Fac x2 / Gar) -8/Garrison (discovered 3 exits: *Mat x3) -8/Materials -8/Garrison (discovered 4 exits: *Fac x3 / [Mat]) -7/Factory -7/Garrison (discovered 2 exits: *Fac x2) -6/Factory (discovered 2 exits: *Fac / Gar) -6/Garrison (discovered 3 exits: *Fac x3) -5/Factory (discovered 2 exits: *Fac / Gar) -5/Garrison (discovered 3 exits: *Fac x3) -4/Factory (discovered 5 exits: *Res / Upp x2 / Ext x2) -3/Research -3/Garrison (discovered 2 exits: *Res x2) -2/Research -2/Garrison -2/Research -1/Access -1/Garrison (discovered 2 exits: *Acc x2) -1/Access History --------- Turn | Location | Event 7 | -11/Scrapyard | Discovered new exit (range 15) 133 | -11/Scrapyard | Entered Materials 305 | -10/Materials | Build established: Mutant 534 | -10/Materials | Discovered new exit (range 5) 598 | -10/Materials | Discovered new exit (range 15) 951 | -10/Materials | Discovered new exit (range 14) 1230 | -10/Materials | Discovered new exit (range 16) 1359 | -10/Materials | Entered Mines 1372 | -10/Mines | Assembled infested the area 1419 | -10/Mines | Discovered new exit (range 5) 1451 | -10/Mines | Met 8R-AWN 1527 | -10/Mines | Discovered new exit (range 8) 1600 | -10/Mines | Identified exit to Subcaves 1709 | -10/Mines | Discovered new exit (range 8) 1771 | -10/Mines | Met a Derelict who couldn't figure out how to use a Trap Extractor 1832 | -10/Mines | Found a damaged Exp. Sensor Array with a note attached 1839 | -10/Mines | Found Prototype Device 1839 | -10/Mines | Identified Exp. Sensor Array 2021 | -10/Mines | Entered Materials 2021 | -9/Materials | Evolved 2 slots: Utility x1, Weapon x1 2539 | -9/Materials | Discovered new exit (range 12) 2600 | -9/Materials | Build established: Scavenger-Tank 2797 | -9/Materials | Discovered new exit (range 16) 3463 | -9/Materials | Discovered new exit (range 5) 3594 | -9/Materials | Central database locked down 4197 | -9/Materials | Discovered new exit (range 12) 4474 | -9/Materials | Entered Mines 4486 | -9/Mines | Learned Materials emergency access door positions 4680 | -9/Mines | Discovered new exit (range 6) 5325 | -9/Mines | Discovered new exit (range 13) 5529 | -9/Mines | Entered Materials 5529 | -8/Materials | Evolved 2 slots: Power x1, Utility x1 5530 | -8/Materials | Identified exit to Factory 5862 | -8/Materials | Garrison activated, responded to threat 6027 | -8/Materials | Discovered exit to Factory (range 9) 6130 | -8/Materials | Build established: Tank 7602 | -8/Materials | Identified exit to Garrison 7602 | -8/Materials | Entered Garrison 7602 | -8/Garrison | Accompanied by 1 ally 7952 | -8/Garrison | Rescued a captive Derelict 7953 | -8/Garrison | Rescued a captive Derelict 7970 | -8/Garrison | Triggered checkpoint 8075 | -8/Garrison | Triggered checkpoint 8108 | -8/Garrison | Triggered checkpoint 8156 | -8/Garrison | Triggered checkpoint 8201 | -8/Garrison | Triggered checkpoint 8451 | -8/Garrison | Spotted B-75 Beast 8467 | -8/Garrison | Spotted B-75 Beast 8486 | -8/Garrison | Destroyed B-75 Beast 8503 | -8/Garrison | Destroyed B-75 Beast 8530 | -8/Garrison | Lost 6 parts (1p3u2w) 8801 | -8/Garrison | Discovered new exit (range 10) 8810 | -8/Garrison | Build established: Scavenger-Tank 8936 | -8/Garrison | Triggered checkpoint 9183 | -8/Garrison | Build established: Scavenger-Gunner 9252 | -8/Garrison | Triggered checkpoint 9269 | -8/Garrison | Discovered new exit (range 14) 9360 | -8/Garrison | Triggered checkpoint 9659 | -8/Garrison | Installed Relay Interface Framework 9708 | -8/Garrison | Expanded RIF knowledge: Signal Jamming 9730 | -8/Garrison | Discovered new exit (range 10) 9765 | -8/Garrison | Entered Materials 9765 | -8/Materials | Accompanied by 1 ally 10223 | -8/Materials | Garrison activated, responded to threat 10318 | -8/Materials | Build established: Tank 10714 | -8/Materials | Identified exit to Garrison 10714 | -8/Materials | Entered Garrison 10760 | -8/Garrison | Triggered checkpoint 10826 | -8/Garrison | Discovered exit to Factory (range 31) 10826 | -8/Garrison | Discovered exit to Factory (range 72) 10826 | -8/Garrison | Discovered exit to Factory (range 81) 10826 | -8/Garrison | Discovered new exit (range 64) 10984 | -8/Garrison | Triggered checkpoint 11077 | -8/Garrison | Core integrity fell below 50% 11164 | -8/Garrison | Triggered checkpoint 11344 | -8/Garrison | Expanded RIF knowledge: Hotswap 11424 | -8/Garrison | Entered Factory 11424 | -7/Factory | Evolved 2 slots: Propulsion x1, Utility x1 11745 | -7/Factory | Identified exit to Garrison 11745 | -7/Factory | Entered Garrison 11745 | -7/Garrison | Discovered recently destroyed garrison 11781 | -7/Garrison | Found embedded Infiltrators 12058 | -7/Garrison | Garrison Relay disabled 12093 | -7/Garrison | P-70 Sage assimilated allied Virus 4a 12216 | -7/Garrison | Expanded RIF knowledge: Patrol Navigation 12338 | -7/Garrison | Discovered new exit (range 12) 12354 | -7/Garrison | Expanded RIF knowledge: Alert ID Control 12622 | -7/Garrison | Discovered new exit (range 9) 12781 | -7/Garrison | Entered Factory 12781 | -6/Factory | Accompanied by 5 allies 12781 | -6/Factory | Evolved 2 slots: Propulsion x1, Weapon x1 13343 | -6/Factory | Found Prototype Launcher 13343 | -6/Factory | Identified Scatter Rocket Array 13404 | -6/Factory | Discovered new exit (range 12) 13919 | -6/Factory | Identified exit to Garrison 13920 | -6/Factory | Entered Garrison 13920 | -6/Garrison | Accompanied by 1 ally 14070 | -6/Garrison | Build established: Scavenger-Tank 14158 | -6/Garrison | Triggered checkpoint 14378 | -6/Garrison | Discovered new exit (range 10) 14424 | -6/Garrison | Triggered checkpoint 14562 | -6/Garrison | Triggered checkpoint 14676 | -6/Garrison | Discovered new exit (range 17) 14676 | -6/Garrison | Discovered new exit (range 67) 14676 | -6/Garrison | Discovered new exit (range 87) 14824 | -6/Garrison | Build established: Tank 14843 | -6/Garrison | Found Fusion Bomb Launcher 15019 | -6/Garrison | Expanded RIF knowledge: Robot Detection 15222 | -6/Garrison | Triggered checkpoint 15234 | -6/Garrison | Triggered checkpoint 15435 | -6/Garrison | Entered Factory 15435 | -5/Factory | Accompanied by 3 allies 15435 | -5/Factory | Evolved 2 slots: Utility x2 15568 | -5/Factory | Build established: Scavenger-Tank 16035 | -5/Factory | First assault squad dispatched 16294 | -5/Factory | Discovered new exit (range 9) 17020 | -5/Factory | Identified exit to Garrison 17020 | -5/Factory | Entered Garrison 17059 | -5/Garrison | Spotted B-86 Titan 17081 | -5/Garrison | Build established: Tank 17208 | -5/Garrison | Destroyed B-86 Titan 17357 | -5/Garrison | Rewired B-90 Cyclops 17530 | -5/Garrison | Triggered checkpoint 17827 | -5/Garrison | Triggered checkpoint 18014 | -5/Garrison | Triggered checkpoint 18083 | -5/Garrison | Discovered new exit (range 10) 18162 | -5/Garrison | Expanded RIF knowledge: Structural Interface 18217 | -5/Garrison | Build established: Scavenger-Tank 18225 | -5/Garrison | Destroyed *E1 18312 | -5/Garrison | Discovered new exit (range 16) 18312 | -5/Garrison | Discovered new exit (range 50) 18312 | -5/Garrison | Discovered new exit (range 82) 18462 | -5/Garrison | Triggered checkpoint 18576 | -5/Garrison | Triggered checkpoint 18593 | -5/Garrison | System corruption reached 10% 18732 | -5/Garrison | Expanded RIF knowledge: Crosswire 18837 | -5/Garrison | Garrison Relay disabled 18939 | -5/Garrison | Entered Factory 18939 | -4/Factory | Evolved 2 slots: Propulsion x2 19059 | -4/Factory | Repaired Wave Gun 19140 | -4/Factory | Build established: Scavenger-Gunner 19908 | -4/Factory | Identified exit to Upper Caves 19908 | -4/Factory | Identified exit to Extension 20439 | -4/Factory | First assault squad dispatched 20942 | -4/Factory | Discovered new exit (range 7) 20944 | -4/Factory | Build established: Scavenger-Skirmisher 20963 | -4/Factory | Identified exit to Research 20965 | -4/Factory | Entered Research 20965 | -3/Research | Evolved 2 slots: Utility x2 21308 | -3/Research | Identified exit to Garrison 21308 | -3/Research | Entered Garrison 21406 | -3/Garrison | Triggered checkpoint 21466 | -3/Garrison | Triggered checkpoint 21547 | -3/Garrison | Garrison Relay disabled 21752 | -3/Garrison | Triggered checkpoint 21824 | -3/Garrison | Build established: Bothacker-Tank 21853 | -3/Garrison | Lost 4 allies 22081 | -3/Garrison | Garrison Relay disabled 22174 | -3/Garrison | Spotted B-86 Titan 22185 | -3/Garrison | Destroyed B-86 Titan 22327 | -3/Garrison | Build established: Botlord-Gunner 22390 | -3/Garrison | Triggered checkpoint 22393 | -3/Garrison | Triggered checkpoint 22512 | -3/Garrison | Triggered checkpoint 22524 | -3/Garrison | Garrison Relay disabled 22621 | -3/Garrison | Rescued a captive Derelict 22645 | -3/Garrison | Discovered new exit (range 15) 22778 | -3/Garrison | Triggered checkpoint 22828 | -3/Garrison | Expanded RIF knowledge: Command Fork 22852 | -3/Garrison | Garrison Relay disabled 22929 | -3/Garrison | Discovered new exit (range 10) 22945 | -3/Garrison | Identified exit to Research 22950 | -3/Garrison | Entered Research 22950 | -2/Research | Accompanied by 1 ally 22950 | -2/Research | Evolved 2 slots: Power x1, Utility x1 23076 | -2/Research | Identified exit to Garrison 23076 | -2/Research | Entered Garrison 23076 | -2/Garrison | Accompanied by 1 ally 23224 | -2/Garrison | Triggered checkpoint 23241 | -2/Garrison | Spotted Executioner 23246 | -2/Garrison | Spotted Executioner 23249 | -2/Garrison | Destroyed Executioner 23269 | -2/Garrison | Destroyed Executioner 23290 | -2/Garrison | Destroyed 7 combat bots 23454 | -2/Garrison | Garrison Relay disabled 23824 | -2/Garrison | Triggered checkpoint 23839 | -2/Garrison | Triggered checkpoint 23850 | -2/Garrison | Spotted B-90 Cyclops 23858 | -2/Garrison | Allies destroyed B-90 Cyclops 24056 | -2/Garrison | Discovered new exit (range 9) 24071 | -2/Garrison | Expanded RIF knowledge: Zone Cloak 24094 | -2/Garrison | Identified exit to Research 24188 | -2/Garrison | Triggered checkpoint 24239 | -2/Garrison | Garrison Relay disabled 24329 | -2/Garrison | Entered Research 24638 | -2/Research | Build established: Botlord-Skirmisher 24648 | -2/Research | Discovered new exit (range 12) 24877 | -2/Research | Unchained authorized (6S-H0T) 24889 | -2/Research | Identified exit to Access 24948 | -2/Research | Build established: Botlord-Gunner 25185 | -2/Research | Spotted 6S-H0T 25633 | -2/Research | System corruption reached 10% 25730 | -2/Research | Spotted 6S-H0T 25765 | -2/Research | Lost 5 parts (1n2u2w) 25833 | -2/Research | Entered Access 25833 | -1/Access | Evolved 2 slots: Utility x1, Weapon x1 25891 | -1/Access | Identified exit to Garrison 25891 | -1/Access | Entered Garrison 25911 | -1/Garrison | Triggered checkpoint 25979 | -1/Garrison | Lost 3 parts (1p1n1w) 26003 | -1/Garrison | Triggered checkpoint 26003 | -1/Garrison | Garrison Relay disabled 26127 | -1/Garrison | Triggered checkpoint 26127 | -1/Garrison | Triggered checkpoint 26145 | -1/Garrison | Spotted B-99 Colossus 26165 | -1/Garrison | Allies destroyed B-99 Colossus 26188 | -1/Garrison | Lost 3 parts (1p2w) 26191 | -1/Garrison | Lost 5 allies 26215 | -1/Garrison | Triggered checkpoint 26268 | -1/Garrison | Lost 5 allies 26274 | -1/Garrison | Lost 4 parts (1p1n1u1w) 26286 | -1/Garrison | System corruption reached 10% 26389 | -1/Garrison | Lost 6 parts (1p1n2u2w) 26491 | -1/Garrison | Triggered checkpoint 26607 | -1/Garrison | Garrison Relay disabled 26610 | -1/Garrison | Build established: Scavenger-Gunner 26727 | -1/Garrison | Discovered new exit (range 10) 26754 | -1/Garrison | Expanded RIF knowledge: Code Merge 26928 | -1/Garrison | Build established: Botlord-Gunner 27001 | -1/Garrison | Triggered checkpoint 27076 | -1/Garrison | Garrison Relay disabled 27306 | -1/Garrison | Build established: Scavenger-Gunner 27310 | -1/Garrison | Discovered new exit (range 13) 27340 | -1/Garrison | Identified exit to Access 27364 | -1/Garrison | Entered Access 27364 | -1/Access | Accompanied by 1 ally 27442 | -1/Access | Found Fusion Bomb Launcher 28419 | -1/Access | Unchained authorized (6S-H0T) 28812 | -1/Access | Spotted 6S-H0T 28849 | -1/Access | Build established: Botlord-Gunner 29446 | -1/Access | P-80 Master assimilated allied Plague 10c 29526 | -1/Access | Spotted 6S-H0T 29562 | -1/Access | Lost 3 allies 29572 | -1/Access | System corruption reached 30% 29871 | -1/Access | P-80 Master assimilated allied Enforcer 10f 30066 | -1/Access | Spotted 6S-H0T 30106 | -1/Access | Lost 3 parts (2p1n) 30173 | -1/Access | Lost 4 parts (2p2w) 30546 | -1/Access | Found Prototype Processor 30546 | -1/Access | Identified Exp. Target Analyzer 30553 | -1/Access | Found Exp. Target Analyzer 30595 | -1/Access | Spotted 6S-H0T 30641 | -1/Access | Lost 3 parts (1n1u1w) 30719 | -1/Access | Lost 3 parts (1n2u) 30860 | -1/Access | Spotted B-99 Colossus 30864 | -1/Access | First assault squad dispatched 30881 | -1/Access | Destroyed B-99 Colossus 30889 | -1/Access | Garrison activated, responded to threat 30953 | -1/Access | Lost 6 parts (1p3u2w) 31050 | -1/Access | P-80 Master assimilated allied Enforcer 10i 31114 | -1/Access | Destroyed 10 combat bots 31212 | -1/Access | Spotted 6S-H0T 31449 | -1/Access | Core integrity fell below 50% 31479 | -1/Access | Lost 5 parts (2p3u) 31743 | -1/Access | Spotted 6S-H0T 31821 | -1/Access | Build established: Botlord-Tank 31953 | -1/Access | High security lockdown imminent 32033 | -1/Access | High security lockdown engaged 32157 | -1/Access | Destroyed 11 combat bots 32168 | -1/Access | Core integrity fell below 20% 32223 | -1/Access | Lost 21 parts (3p8n3u7w) 32364 | -1/Access | Destroyed by G-73 Enforcer with Phase Gun Last Messages --------------- 32350_ C-45 Heavy ARC bursts open, deploying its payload. 32350_ G-73 Enforcer unfolds itself. 32350_ B-74 Champion unfolds itself. 32350_ G-73 Enforcer unfolds itself. 32350_ E-15 Imp unfolds itself. 32350_ Com. HERF Cannon destroyed. 32350_ Field Propulsion Array destroyed. 32350_ Penetrated by Slug. 32350_ Field Propulsion Array destroyed. 32356_ K-01 Serf collects debris. 32357_ C-45 Heavy ARC bursts open, deploying its payload. 32357_ B-74 Champion unfolds itself. 32357_ G-73 Enforcer unfolds itself. 32357_ B-74 Champion unfolds itself. 32357_ M-36 Artificer unfolds itself. 32364_ System corrupted: FCS attempts to trigger Phase Gun. 32364_ System corrupted: Phase Gun misfires. Map ----- +----------------------------------------------------+ | ??????????????????????????????????????????# | | ??????????????????????? ?????#?????#???#??# | | ??????????????????????????? ??????????????# | | ???????????????????????????????#???############### | | ????????????????????????????????????# !# | | ??????????????????? ??????#?????????# %%# | | ????????????????????????????????????# "" %[%+ | | ???????????????????????????????#????# ""=[*=# | | ??????????????????????????????##????# """"""%%# | | ????????????????????????????????????# """"""%!# | | ????????????????????????????#??#????# "" [# | | ?????????????????????? ? ??????????## " # | | ?????????????????????##??#??????????# # | | ????????????????????? ??????#??????# % % % !# | | ????????????????????? ?#????????? ?# % % # | | ????????????????????# ???#?????????# !*%% # | | ?????????????????????? ????????????####+######### | | ??????????????????? #?# ?????#?????????#%#!#?#??## | | ??????????????????????# ?????#???????#?#*######### | | ????????????????????### ###??# ???#?## #%!!= ## | | ??????????????????? # tu #??# ??????## #*[!= ## | | ?????????????????? ?# #####+######## #% ! ## | | ????????????????????# A %k!/! ! ## | | ????????????????????# %%# ! ## | | ????????????????????# o#= % #? | | ??????????????????????## @ ########? | | ?????????????????????? # ^ ###??##?? | | ???????????????????????# ^ % ""##??#?? | | ???????????????????????+ """ """ ""#?#???? | | ???????????????????????# """"""" % ""#?#???? | | ???????????????????????### """"""" T#??#??? | | ?????????????????????????# """"" ""#?##### | | ???????????????? ????????# """""" ""#?#!! | | ?????????????????????????# b""""""" ""###|!= | | ?????????????????????#???# """ """ ### #!! | | ?????????????????????????# gg %" #### | | ?????????????????????????# b " % %+ | | ???????????????????????#?# % %# | | ???????????????#######?#?# ####+### # | | ???????????????# ##### ####+### %+%#!!! | | ???????????????# ##?????# %#%# [ | | ???????????????+ w +???? # #%##### | | ???????????????# ! ##?????# #%#???? | | ???????????????# #########??????#= #%##### | | ???????????????### ### #??????# # =^=^ | | ?????????????????# #?# #??????########=|^=^ | | ?????????????????# #?# #???? ????????#!*^ | | ?????????????????# #?# #???? ????????#!= " | | ?????????????????# #?# ?##????????????# """ | | ?????????????????# #?# ?????????????????#% = "" | +----------------------------------------------------+ Best States ------------- Heat Dissipation 139 Coolant Potential 220 Energy Generation 65 Energy Capacity 830 Matter Stores 300 Matter Capacity 300 Sight Range 16 Robot Scan Range 20 Terrain Scan Range 24 Terrain Scan Density 210 Jamming Range 12 Armor Coverage 1200 Core Shielding 30 Phase Shifting 15 Evasion (%) 70 Targeting Accuracy 8 Target Analysis 12 Core Analysis 6 Recoil Reduction 6 Matter Filtering 75 Kinecelleration 40 Defensive Hacking 12 Relay Coupler Types 6 Relay Coupler Value 120 Item Schematics ----------------- Lgt. Treads | -9/Materials | Scanalyzed Beam Rifle | -9/Materials | Scanalyzed Shield Generator | -9/Materials | Scanalyzed Plasma Cutter | -2/Research | Hacked Robot Schematics ------------------ None Fabricated ------------ Nothing Repaired ---------- Wave Gun | 23% | -4/Factory Studied --------- Adv. Treads | -8/Materials | Hacked Med. Armored Exoskeleton | -4/Factory | Hacked Phase Cannon | -4/Factory | Hacked Imp. Treads | -4/Factory | Hacked Matter Neutralizer | -4/Factory | Hacked Alien Tech Used ----------------- None Achievements -------------- Oppo Buddy Challenges ------------ None Game ------ Seed StorageNuclearDistortion Manual? 0 Play Time 03:45:43 Cumulative 349.6 hours Start 2026.09.16 @ 19:50:59 End 2026.09.16 @ 23:44:39 Sessions 1 Manual Loads 0 Difficulty Rogue Special Mode None Game No. 180 Rogue 180 Adventurer 0 Explorer 0 Win Type - Total 8 Types 8/0/0/0/0/0/0/0/0/0 Lore% 57 Gallery% 63 Achievement% 47 Wizard Run 0 Options --------- Layout 1 ASCII 0 Keyboard 0 Movement Numpad Keybinds 0 Fullscreen 1 Font 24/Smallcaps Map View 50x35 Zoom Use 0% Tactical HUD 1 Map Filters NONE Filters NONE Steam 1 RUN: 081af78d-d102-45f0-9e37-b9776f681469